Cogmind - Beta 13 @@@ ROGUE MODE // 2024.04.03 @ 02:04:15 Player: Desymo99 Result: Destroyed by G-34 Mercenary with Small Laser Performance ------------- Evolutions (0) 0 Regions Visited (1) 200 Robots Destroyed (18) 90 Value Destroyed (441) 441 Prototype IDs (0) 0 Alien Tech Used (0) 0 Bonus (0) 0 TOTAL SCORE: 731 Bonus ------- None Cogmind --------- Core Integrity 0/250 Matter 215/300 Energy 100/100 System Corruption 6% Temperature Cool (6) Movement Core (1450) Ox28 Location -10/Materials Parts ------- > --- POWER (1) -------- (None) > --- PROPULSION (2) --- (None) > --- UTILITY (2) ------ Huge Storage Unit Targeting Computer > --- WEAPON (2) ------- Flail Heavy Hammer > --- INVENTORY (25) --- Light Treads Light Treads Large Storage Unit Structural Scanner Sensor Array ECM Suite Light Assault Rifle Light Assault Rifle Light Assault Rifle Light Cannon Grenade Launcher Peak State ------------ > --- POWER ------------ Light Nuclear Core > --- PROPULSION ------- Aluminum Leg Aluminum Leg > --- UTILITY ---------- Medium Storage Unit Targeting Computer > --- WEAPON ----------- Flail Heavy Hammer > --- INVENTORY -------- Light Ion Engine Light Treads Light Treads Structural Scanner Sensor Array Light Assault Rifle Light Assault Rifle Light Assault Rifle Light Cannon Grenade Launcher [Rating: 12] Favorites ----------- Power Light Nuclear Core Engine Improved Ion Engine Power Core Light Nuclear Core Propulsion Aluminum Leg Leg Aluminum Leg Utility Small Storage Unit Device Heat Sink Storage Small Storage Unit Processor Targeting Computer Weapon Light Assault Rifle Ballistic Gun Light Assault Rifle Ballistic Cannon Light Cannon Impact Weapon Flail Build | -11 -10 ------- Run | Yrd Mat Slots Evolved . | . . Power . | . . Propulsion . | . . Utility . | . . Weapon . | . . Parts Attached 26 | 6 20 Power 5 | 1 4 Engine 3 | 1 2 Core 2 | . 2 Reactor . | . . Propulsion 9 | 2 7 Treads . | . . Leg 9 | 2 7 Wheel . | . . Hover . | . . Flight . | . . Utility 7 | 1 6 Device 2 | . 2 Storage 4 | 1 3 Processor 1 | . 1 Hackware . | . . Protection . | . . Artifact . | . . Weapon 5 | 2 3 Energy Gun . | . . Energy Cannon . | . . Ballistic Gun 2 | 2 . Ballistic Cannon 1 | . 1 Launcher . | . . Special Weapon . | . . Impact Weapon 2 | . 2 Slashing Weapon . | . . Piercing Weapon . | . . Special Melee Weapon . | . . Unidentified Prototypes . | . . Parts Lost 7 | . 7 Power 3 | . 3 Propulsion 3 | . 3 Utility . | . . Weapon 1 | . 1 Highest Loss Streak 3 | . 3 To Critical Strikes . | . . Average Slot Usage (%) 96 | . 96 Engine 5 | . 5 Core 7 | . 7 Leg 27 | . 27 Device 6 | . 6 Storage 14 | . 14 Processor 5 | . 5 Ballistic Gun 15 | . 15 Ballistic Cannon 2 | . 2 Impact Weapon 9 | . 9 Naked Turns . | . . Heaviest Build 88 | 13 88 Greatest Support 20 | 20 20 Greatest Overweight (x) 8 | . 8 Average Overweight (x) . | . . Largest Inventory Capacity 25 | 8 25 Average Capacity 10 | 7 10 Most Carried 11 | 6 11 Average Carried 8 | 2 8 Final Capacity 25 | 8 25 Final Carried 11 | 6 11 Class Distribution -------------------- 53% | Mutant 46% | Scavenger-Mutant Dominant Class ---------------- Mutant | -10/Materials Resources | -11 -10 ----------- Run | Yrd Mat Matter Collected 636 | 243 393 Remotely . | . . Salvage Created 501 | . 501 Parts 36 | . 36 Haulers Intercepted 2 | . 2 Recyclers Shooed . | . . Parts Field Recycled . | . . Retrieved Matter . | . . Parts Self-Destructed . | . . Prevented . | . . Kills | -11 -10 ------- Run | Yrd Mat Combat Hostiles Destroyed 10 | . 10 Melee 1 | . 1 Guns 8 | . 8 Cannons 1 | . 1 Classes Destroyed 6 | . 6 Worker 2 | . 2 Builder 1 | . 1 Hauler 2 | . 2 Watcher 3 | . 3 Swarmer 1 | . 1 Grunt 9 | . 9 Best Kill Streak 3 | . 3 Combat Bots Only 2 | . 2 Max Kills in Single Turn 3 | . 3 Gunslinging . | . . Exploded . | . . Melee 1 | . 1 Uniques/NPCs Destroyed . | . . Combat | -11 -10 -------- Run | Yrd Mat Hostile Shots Fired 101 | . 101 Missed 25 | . 25 Damage Taken 1010 | . 1010 Core 253 | . 253 Absorbed by Shields . | . . Core Remaining (%) 100 | 100 . Volleys Fired 64 | . 64 Largest 2 | . 2 Hottest 55 | . 55 Shots Fired 119 | . 119 Gun 118 | . 118 Cannon 1 | . 1 Launcher . | . . Special . | . . Kinetic 119 | . 119 Thermal . | . . Explosive . | . . Electromagnetic . | . . Robot Hit Streak 14 | . 14 Robot Miss Streak 3 | . 3 Penetration Max . | . . Secondary Targets . | . . Shots Hit Robots 63 | . 63 Core Hits 26 | . 26 Critical Kills 1 | . 1 Critical Parts Destroyed 1 | . 1 Critical Strikes 2 | . 2 Destroy 1 | . 1 Smash 1 | . 1 Melee Attacks 22 | . 22 Impact 22 | . 22 Slashing . | . . Piercing . | . . Sneak Attacks 2 | . 2 Combat Hostiles . | . . Follow-up Attacks . | . . Damage Inflicted 1452 | . 1452 Guns 599 | . 599 Cannons 20 | . 20 Explosions 382 | . 382 Melee 451 | . 451 Ramming . | . . Kinetic 619 | . 619 Thermal . | . . Explosive 382 | . 382 Electromagnetic . | . . Impact 451 | . 451 Slashing . | . . Piercing . | . . Highest Corruption 6 | . 6 Average Corruption 4 | . 4 Corruption Purged . | . . Corruption Blocked . | . . Effects 25 | . 25 Message Errors 8 | . 8 Matter Fused 7 | . 7 Heat Flow Errors 3 | . 3 Energy Discharges 1 | . 1 Data Loss (minor) 5 | . 5 Alerts 1 | . 1 Overload Shots . | . . Overflow Damage 145 | . 145 Projectiles 11 | . 11 Explosions 58 | . 58 Melee 76 | . 76 Knockbacks 1 | . 1 Impact 1 | . 1 Kinetic . | . . Secondary . | . . Self-Inflicted Damage 101 | . 101 Shots 2 | . 2 Rammed . | . . Targets Rammed . | . . Kicked . | . . Crushed . | . . Highest Temperature 215 | . 215 Average Temperature 30 | . 30 Received Heat Transfer 408 | . 408 Siege Activations . | . . Robots Corrupted . | . . Combat Hostiles . | . . Parts Fried . | . . Impact Corruptions 2 | . 2 Robots Melted . | . . Combat Hostiles . | . . Parts Melted . | . . Heat Transferred . | . . Parts Sabotaged . | . . Parts Stolen . | . . Parts Stripped . | . . Power Chain Reactions . | . . Alert | -11 -10 ------- Run | Yrd Mat Peak Influence 178 | . 178 Initial . | . . Average 61 | . 65 Maximum Alert Level . | . . Low Security (%) 100 | 100 100 Level 1 . | . . Level 2 . | . . Level 3 . | . . Level 4 . | . . Level 5 . | . . High Security . | . . Max Security . | . . Squads Dispatched 2 | . 2 Investigation 2 | . 2 Extermination . | . . Reinforcement . | . . Assault . | . . Garrison . | . . Intercept . | . . Searches Triggered . | . . Construction Impeded . | . . Haulers Reinforced . | . . Active Scanning Responses . | . . Cargo Convoy Interrupts . | . . Stealth | -11 -10 --------- Run | Yrd Mat Distress Signals . | . . Communications Jammed . | . . Distress Signals . | . . Times Spotted 18 | . 18 Peak Tracking Total 3 | . 3 Tactical Retreats 2 | . 2 Traps | -11 -10 ------- Run | Yrd Mat Traps Triggered 4 | . 4 Indirectly . | . . Trap Hack Attempts . | . . Triggered . | . . Disarmed . | . . Reprogrammed . | . . Reused . | . . Traps Extracted . | . . Installed . | . . Triggered . | . . Machines | -11 -10 ---------- Run | Yrd Mat Machines Disabled 4 | . 4 Max in Single Turn 2 | . 2 Machines Repaired . | . . Machines Dismantled . | . . Machines Sabotaged . | . . Overloaded Fab Kills . | . . Hacking | -11 -10 --------- Run | Yrd Mat Machines Accessed 8 | . 8 Terminals 6 | . 6 Fabricators . | . . Repair Stations . | . . Recycling Units 2 | . 2 Scanalyzers . | . . Garrison Access . | . . Total Hacks 24 | . 24 Successful 12 | . 12 Failed 11 | . 11 Catastrophic 2 | . 2 Database Lockouts 1 | . 1 Manual 21 | . 21 Terminals 18 | . 18 Fabricators . | . . Repair Stations . | . . Recycling Units 6 | . 6 Scanalyzers . | . . Garrison Access . | . . Terminal Hacks 7 | . 7 Robot Analysis 3 | . 3 Alert Level 3 | . 3 Unreport Threat 1 | . 1 Fabricator Hacks . | . . Repair Station Hacks . | . . Recycling Unit Hacks . | . . Scanalyzer . | . . Garrison Access Hacks . | . . Unauthorized Hacks 5 | . 5 Terminals 2 | . 2 Botnet 2 | . 2 Fabricators . | . . Repair Stations . | . . Recycling Units 3 | . 3 Reject 1 | . 1 Mask 2 | . 2 Scanalyzers . | . . Garrison Access . | . . Data Cores Recovered . | . . Used . | . . Hacking Detections 6 | . 6 Full Trace Events 2 | . 2 Feedback Events . | . . Feedback Blocked . | . . Robot Schematics Acquired . | . . Robots Built . | . . Authchips . | . . Time . | . . Total Robot Build Rating . | . . Part Schematics Acquired . | . . Parts Built . | . . Authchips . | . . Time . | . . Total Part Build Rating . | . . Parts Repaired . | . . Time . | . . Parts Recycled . | . . Recycled Matter . | . . Retrieved Matter . | . . Retrieved Components . | . . Parts Scanalyzed . | . . Part Schematics Acquired . | . . Parts Damaged . | . . Bothacking | -11 -10 ------------ Run | Yrd Mat Used RIF Installer . | . . Robots Hacked . | . . Non-combat . | . . Combat . | . . Robot Hacks Applied . | . . Relay Couplers Released . | . . Fabnet Peak Effective % . | . . Robots Rewired . | . . Allies Hacked . | . . Hacks Repelled . | . . Allies | -11 -10 -------- Run | Yrd Mat Total Allies . | . . Largest Group . | . . Highest-Rated Group . | . . Highest-Rated Ally . | . . Total Orders . | . . Ally Attacks . | . . Total Damage . | . . Kills . | . . Allies Corrupted . | . . Allies Melted . | . . Intel | -11 -10 ------- Run | Yrd Mat Robot Analysis Total 3 | . 3 Derelict Logs Recovered . | . . Drone Launches . | . . Drone Recoveries . | . . Exploration | -11 -10 ------------- Run | Yrd Mat Turns Passed 1481 | 81 1400 Spaces Moved 855 | 56 799 Core 3 | 3 . Treads . | . . Legs 852 | 53 799 Wheels . | . . Hover . | . . Flight . | . . Fastest Speed 50 | 50 120 Average Speed 135 | 116 137 Slowest Speed 680 | 120 680 Overloaded Moves . | . . Propulsion Burnouts . | . . Robots Hopped . | . . Cave-ins Triggered . | . . Exploration Rate (%) 50 | 4 96 Regions Visited 1 Branch Regions . Pre-discovered Areas . | . . Known Exits Taken . | . . Unknown Exits Taken 1 | 1 . Scrap Searched . | . . Spaces Dug 6 | . 6 Terrain Destroyed 34 | . 34 Melee 6 | . 6 Projectile . | . . AOE 28 | . 28 Terrain Rammed . | . . Walls Destroyed . | . . Machines Disabled . | . . Actions | -11 -10 --------- Run | Yrd Mat Total 1041 | 69 972 Wait 42 | 2 40 Move 854 | 55 799 Hop . | . . Pick Up 20 | 6 14 Fast Attach 8 | 6 2 Attach 4 | . 4 Detach . | . . Swap 14 | . 14 Drop 18 | . 18 Fire 64 | . 64 Melee 17 | . 17 Ram . | . . Kick . | . . Crush . | . . Escape Stasis . | . . Rewire . | . . Trap . | . . Miscellaneous . | . . Route ------- -11/Scrapyard -10/Materials (discovered 4 exits: [*Mat x3] / [*Min]) History --------- Turn | Location | Event 16 | -11/Scrapyard | Discovered new exit (range 16) 82 | -11/Scrapyard | Entered Materials 248 | -10/Materials | Discovered new exit (range 13) 339 | -10/Materials | Build established: Mutant 360 | -10/Materials | Central database locked down 629 | -10/Materials | Discovered new exit (range 13) 724 | -10/Materials | Build established: Scavenger-Mutant 931 | -10/Materials | Discovered new exit (range 12) 1075 | -10/Materials | Discovered new exit (range 12) 1210 | -10/Materials | Core integrity fell below 50% 1452 | -10/Materials | Core integrity fell below 20% 1482 | -10/Materials | Destroyed by G-34 Mercenary with Small Laser Last Messages --------------- >>Trojan(Mask) Trojan loaded successfully. Testing... Masking routine running. >>Trojan(Reject) Trojan loaded successfully. Testing... Ejection routine running. 01410_ ALERT: Suspicious activity at Recycling Unit M002. Dispatching Investigation squad. 01450_ XK |A/ CAN81FFY&QTPCWAEPP/8B7G 01455_ Lgt. Ion Engine destroyed. 01457_ G-34 Mercenary destroyed. 01460_ Aluminum Leg destroyed. 01467_ G-34 Mercenary knocked back. 01474_ Aluminum Leg destroyed. 01479_ G-34 Mercenary suffers critical hit (Smash). 01479_ Destroyed Aluminum Leg. 01479_ G-34 Mercenary system corrupted by crushing effect. Map ----- +----------------------------------------------------+ | # ! """"" " # ]! ] ##### ##+##?? | | # # #???# ## #? | | # #####+##### #???# [! ## #? | | ########## ##### #???# [! ## #? | | #???# [= ## #? | | #???# ## #? | | #???####### #? | | """ #?????????# #? | | """ #######???#####? | | """ # #????????? | | % #????????? | | ] #????????? | | #????????? | | ###+################# #????????? | | # T #######??????###+#######????? | | """" # [[ #????????????# #????? | | """" # [[ #????????????# """"""" #????? | | """" # #????????????# """"""" #????? | | # ! !#????????????# """"""" #????? | | # #????######??# """"""" #????? | | """" ########???##!!!!##?# """"""" #????? | | """" #??????????#! !#?# #????? | | """" #???????#### #?# #????? | | ############ #############????? | | g #?????????????? | | ## @ #?????????????? | | ?# < #################+## %#########?????? | | ?# #?????# # !## #?????? | | ?#####?????# """ """ # ## """ #?????? | | ???????????# """ """ # ## "Y" #?????? | | ???????????# """ """ # + " " #?????? | | ???????????# # ## #?????? | | ???????????############## ## ! #?????? | | ???????????# # #####+###?????? | | ???????????# """ """ + #?????? | | ???????????# """ """ # #?????? | | ???????????# """ """ ############?????? | | ???????????# #????????????????? | | ???????????##############????????????????? | | ?????????????????????????????????????????? | | | | | | | | | | | | | | | | | | | | | +----------------------------------------------------+ Best States ------------- Heat Dissipation 35 Energy Generation 14 Energy Capacity 265 Matter Stores 300 Matter Capacity 300 Sight Range 16 Terrain Scan Density 10 Evasion (%) 55 Targeting Accuracy 5 Item Schematics ----------------- None Robot Schematics ------------------ None Fabricated ------------ Nothing Alien Tech Used ----------------- None Achievements -------------- None Challenges ------------ None Game ------ Seed FortressNullShotgun Manual? 0 Play Time 00:15:20 Cumulative 35.0 hours Start 2024.04.03 @ 01:52:52 End 2024.04.03 @ 02:04:15 Sessions 1 Manual Loads 0 Difficulty Rogue Special Mode None Game No. 46 Rogue 46 Adventurer 0 Explorer 0 Win Type - Total 1 Types 1/0/0/0/0/0/0/0/0 Lore% 25 Gallery% 32 Achievement% 32 Wizard Run 0 Options --------- Layout 2 ASCII 0 Keyboard 1 Movement Numpad Keybinds 0 Fullscreen 1 Font 16/SmallcapsGlow Map View 55x47 Zoom Use 0% Tactical HUD 1 Map Filters NONE Filters NONE Steam 1 RUN: 3e7d8850-5899-463e-b2a6-b959d5976b15